Cogmind - Beta 13 @@@ ROGUE MODE // 2024.05.12 @ 16:51:08 Player: satan5 Result: Destroyed by Proton Bomb Trap Performance ------------- Evolutions (2) 1000 Regions Visited (3) 600 Robots Destroyed (29) 145 Value Destroyed (769) 769 Prototype IDs (10) 200 Alien Tech Used (0) 0 Bonus (0) 0 TOTAL SCORE: 2714 Bonus ------- None Cogmind --------- Core Integrity 0/550 Matter 57/300 Energy 98/100 System Corruption 0% Temperature Cool (0) Movement Core (50) Location -8/Materials Parts ------- > --- POWER (1) -------- (None) > --- PROPULSION (4+3) - Arachnoskeleton Cesium-ion Thruster > --- UTILITY (4) ------ Structural Scanner > --- WEAPON (2) ------- Mining Claw > --- INVENTORY (5) ---- Large Storage Unit Particle Gun Particle Gun Peak State ------------ > --- POWER ------------ Deuterium Engine > --- PROPULSION ------- Improved Aluminum Leg Arachnoskeleton > --- UTILITY ---------- Structural Scanner > --- WEAPON ----------- Plasma Cannon Plasma Cannon > --- INVENTORY -------- (None) [Rating: 35] Favorites ----------- Power Light Ion Engine Engine Light Ion Engine Power Core Micro Nuclear Core Propulsion Aluminum Leg Leg Aluminum Leg Flight Unit Cesium-ion Thruster Utility Structural Scanner Device Structural Scanner Storage Large Storage Unit Protection Weapon Shielding Weapon Spread Laser Energy Gun Spread Laser Energy Cannon Subdweller Beam Cannon Ballistic Gun Assault Rifle Slashing Weapon Mining Claw Build | -11 -10 -10 -8 ------- Run | Yrd Mat Sub Mat Slots Evolved 4 | . . . 4 Power . | . . . . Propulsion 2 | . . . 2 Utility 2 | . . . 2 Weapon . | . . . . Parts Attached 49 | 6 11 12 20 Power 4 | 1 1 . 2 Engine 3 | 1 1 . 1 Core 1 | . . . 1 Reactor . | . . . . Propulsion 13 | 2 1 3 7 Treads . | . . . . Leg 12 | 2 1 3 6 Wheel . | . . . . Hover . | . . . . Flight 1 | . . . 1 Utility 15 | 1 3 7 4 Device 8 | . 2 4 2 Storage 2 | 1 1 . . Processor . | . . . . Hackware . | . . . . Protection 5 | . . 3 2 Artifact . | . . . . Weapon 17 | 2 6 2 7 Energy Gun 6 | . 5 1 . Energy Cannon 5 | . . 1 4 Ballistic Gun 5 | 2 1 . 2 Ballistic Cannon . | . . . . Launcher . | . . . . Special Weapon . | . . . . Impact Weapon . | . . . . Slashing Weapon 1 | . . . 1 Piercing Weapon . | . . . . Special Melee Weapon . | . . . . Unidentified Prototypes . | . . . . Parts Lost 15 | . 3 2 10 Power 1 | . 1 . . Propulsion 10 | . 1 2 7 Utility 3 | . . . 3 Weapon 1 | . 1 . . Highest Loss Streak 7 | . 1 1 7 To Critical Strikes 1 | . . 1 . Average Slot Usage (%) 91 | . 98 99 53 Engine 12 | . 14 14 3 Leg 26 | . 27 27 18 Device 12 | . 13 11 12 Storage 12 | . 14 14 3 Protection 1 | . . 2 3 Energy Gun 18 | . 25 19 3 Energy Cannon 4 | . . 8 5 Ballistic Gun 1 | . 2 . . Naked Turns . | . . . . Heaviest Build 41 | 13 32 37 41 Greatest Support 60 | 20 20 20 60 Greatest Overweight (x) 3 | . 2 1 3 Average Overweight (x) . | . . 1 . Largest Inventory Capacity 15 | 8 15 15 15 Average Capacity 12 | 6 12 15 9 Most Carried 15 | 5 13 15 15 Average Carried 10 | 2 8 14 7 Final Capacity 15 | 8 15 15 5 Final Carried 15 | 3 13 15 3 Class Distribution -------------------- 69% | Mutant 30% | Scavenger-Mutant Dominant Class ---------------- Mutant | -10/Materials Scavenger-Mutant | -10/Subcaves Mutant | -8/Materials Resources | -11 -10 -10 -8 ----------- Run | Yrd Mat Sub Mat Matter Collected 549 | 186 257 100 6 Remotely . | . . . . Salvage Created 789 | 22 473 143 151 Parts 57 | 4 33 10 10 Haulers Intercepted 1 | . 1 . . Recyclers Shooed 2 | . 2 . . Parts Field Recycled . | . . . . Retrieved Matter . | . . . . Parts Self-Destructed 2 | . . 2 . Prevented . | . . . . Kills | -11 -10 -10 -8 ------- Run | Yrd Mat Sub Mat Combat Hostiles Destroyed 18 | . 13 2 3 Guns 16 | . 12 2 2 Cannons 1 | . . . 1 AOE 1 | . 1 . . Classes Destroyed 10 | 1 7 1 1 Worker 1 | . 1 . . Builder 2 | . 1 . 1 Tunneler 1 | 1 . . . Hauler 1 | . 1 . . Recycler 2 | . 2 . . Watcher 4 | . 3 . 1 Swarmer 3 | . 3 . . Grunt 12 | . 10 . 2 Duelist 1 | . . . 1 Subdweller 2 | . . 2 . Best Kill Streak 3 | 1 3 1 3 Combat Bots Only 3 | . 3 1 1 Max Kills in Single Turn 2 | 1 2 1 1 Gunslinging . | . . . . Exploded 1 | . 1 . . Melee . | . . . . Uniques/NPCs Destroyed . | . . . . Combat | -11 -10 -10 -8 -------- Run | Yrd Mat Sub Mat Hostile Shots Fired 194 | . 50 11 133 Missed 29 | . 6 5 18 Damage Taken 2680 | . 602 172 1906 Core 737 | . 167 18 552 Absorbed by Shields . | . . . . Redirected to Shielding 65 | . . 14 51 Regen/Repaired (Parts) 24 | . 24 . . Core Remaining (%) 63 | 100 . 26 . Volleys Fired 93 | 2 41 21 29 Largest 2 | 2 2 2 2 Hottest 160 | 40 130 140 160 Shots Fired 177 | 4 82 42 49 Gun 137 | 4 82 35 16 Cannon 40 | . . 7 33 Launcher . | . . . . Special . | . . . . Kinetic 14 | 4 2 . 8 Thermal 163 | . 80 42 41 Explosive . | . . . . Electromagnetic . | . . . . Robot Hit Streak 26 | 1 7 26 18 Robot Miss Streak 11 | 2 11 6 3 Penetration Max . | . . . . Secondary Targets 3 | . 2 . 1 Max Gunslinging Chain 1 | . 1 . 1 Shots Hit Robots 127 | 1 66 28 32 Core Hits 128 | 1 80 37 10 Critical Kills . | . . . . Critical Parts Destroyed . | . . . . Critical Strikes . | . . . . Melee Attacks 3 | . . . 3 Impact . | . . . . Slashing 3 | . . . 3 Piercing . | . . . . Sneak Attacks . | . . . . Combat Hostiles . | . . . . Follow-up Attacks . | . . . . Damage Inflicted 2993 | 10 1228 471 1284 Guns 1508 | 10 864 471 163 Cannons 641 | . . . 641 Explosions 844 | . 364 . 480 Melee . | . . . . Ramming . | . . . . Kinetic 69 | 10 . . 59 Thermal 2663 | . 1081 471 1111 Explosive 114 | . . . 114 Electromagnetic 147 | . 147 . . Impact . | . . . . Slashing . | . . . . Piercing . | . . . . Highest Corruption . | . . . . Average Corruption . | . . . . Corruption Purged . | . . . . Corruption Blocked . | . . . . Overload Shots . | . . . . Overflow Damage 67 | . 35 . 32 Projectiles . | . . . . Explosions 67 | . 35 . 32 Melee . | . . . . Knockbacks . | . . . . Impact . | . . . . Kinetic . | . . . . Secondary . | . . . . Self-Inflicted Damage 221 | . 108 . 113 Shots 4 | . 3 . 1 Rammed . | . . . . Targets Rammed . | . . . . Kicked . | . . . . Crushed . | . . . . Highest Temperature 530 | . 465 51 530 Average Temperature 150 | . 127 17 265 Received Heat Transfer 1119 | . 231 42 846 Effects 19 | . 6 . 13 Shutdowns 5 | . 1 . 4 Energy Bleed 3 | . . . 3 Interference 3 | . 3 . . Matter Decay 4 | . 1 . 3 Short Circuit 1 | . . . 1 Damage (minor) 3 | . 1 . 2 Siege Activations . | . . . . Robots Corrupted . | . . . . Combat Hostiles . | . . . . Parts Fried . | . . . . Impact Corruptions . | . . . . Robots Melted . | . . . . Combat Hostiles . | . . . . Parts Melted 7 | . 2 1 4 Heat Transferred 3453 | . 1345 585 1523 Parts Sabotaged . | . . . . Parts Stolen . | . . . . Parts Stripped . | . . . . Power Chain Reactions 1 | . 1 . . Alert | -11 -10 -10 -8 ------- Run | Yrd Mat Sub Mat Peak Influence 257 | 5 257 . 248 Initial 3 | . 3 . . Average 98 | 2 105 . 97 Maximum Alert Level 1 | . 1 . 1 Low Security (%) 90 | 100 93 . 82 Level 1 9 | . 6 . 17 Level 2 . | . . . . Level 3 . | . . . . Level 4 . | . . . . Level 5 . | . . . . High Security . | . . . . Max Security . | . . . . Squads Dispatched 2 | . 2 . . Investigation 1 | . 1 . . Extermination . | . . . . Reinforcement 1 | . 1 . . Assault . | . . . . Garrison . | . . . . Intercept . | . . . . Searches Triggered . | . . . . Construction Impeded . | . . . . Haulers Reinforced . | . . . . Active Scanning Responses . | . . . . Cargo Convoy Interrupts . | . . . . Stealth | -11 -10 -10 -8 --------- Run | Yrd Mat Sub Mat Distress Signals 3 | . 2 . 1 Communications Jammed . | . . . . Distress Signals . | . . . . Times Spotted 44 | . 21 3 20 Peak Tracking Total 9 | . 4 2 9 Tactical Retreats 7 | . . . 7 Traps | -11 -10 -10 -8 ------- Run | Yrd Mat Sub Mat Traps Triggered 3 | . 1 1 1 Indirectly . | . . . . Trap Hack Attempts . | . . . . Triggered . | . . . . Disarmed . | . . . . Reprogrammed . | . . . . Reused . | . . . . Traps Extracted . | . . . . Installed . | . . . . Triggered . | . . . . Objects Rigged 2 | . . . 2 Exploded 1 | . . . 1 Machines | -11 -10 -10 -8 ---------- Run | Yrd Mat Sub Mat Machines Disabled 7 | . 2 1 4 Max in Single Turn 2 | . 1 1 2 Machines Repaired . | . . . . Machines Dismantled . | . . . . Machines Sabotaged . | . . . . Overloaded Fab Kills . | . . . . Hacking | -11 -10 -10 -8 --------- Run | Yrd Mat Sub Mat Machines Accessed 11 | . 4 1 6 Terminals 9 | . 3 . 6 Fabricators . | . . . . Repair Stations 1 | . 1 . . Recycling Units . | . . . . Scanalyzers . | . . . . Garrison Access . | . . . . Total Hacks 30 | . 8 9 13 Successful 20 | . 4 9 7 Failed 10 | . 4 . 6 Catastrophic 3 | . . . 3 Database Lockouts . | . . . . Manual 12 | . 3 . 9 Terminals 19 | . 6 . 13 Fabricators . | . . . . Repair Stations 2 | . 2 . . Recycling Units . | . . . . Scanalyzers . | . . . . Garrison Access . | . . . . Terminal Hacks 13 | . 1 9 3 Record 8 | . . 8 . Robot Analysis 1 | . 1 . . Level Access Points 1 | . . . 1 Branch Access Points 1 | . . . 1 Unreport Threat 1 | . . . 1 Derelict Proto ID Bank 1 | . . 1 . Fabricator Hacks . | . . . . Repair Station Hacks 2 | . 2 . . Scan Component 1 | . 1 . . Repair 1 | . 1 . . Recycling Unit Hacks . | . . . . Scanalyzer . | . . . . Garrison Access Hacks . | . . . . Unauthorized Hacks 5 | . 1 . 4 Terminals 5 | . 1 . 4 Track 1 | . . . 1 Botnet 3 | . 1 . 2 Detonate 1 | . . . 1 Fabricators . | . . . . Repair Stations . | . . . . Recycling Units . | . . . . Scanalyzers . | . . . . Garrison Access . | . . . . Data Cores Recovered . | . . . . Used . | . . . . Hacking Detections 10 | . 4 . 6 Full Trace Events 1 | . . . 1 Feedback Events . | . . . . Feedback Blocked . | . . . . Robot Schematics Acquired . | . . . . Robots Built . | . . . . Authchips . | . . . . Time . | . . . . Total Robot Build Rating . | . . . . Part Schematics Acquired . | . . . . Parts Built . | . . . . Authchips . | . . . . Time . | . . . . Total Part Build Rating . | . . . . Parts Repaired 1 | . 1 . . Time 32 | . 32 . . Parts Recycled . | . . . . Recycled Matter . | . . . . Retrieved Matter . | . . . . Retrieved Components . | . . . . Parts Scanalyzed . | . . . . Part Schematics Acquired . | . . . . Parts Damaged . | . . . . Bothacking | -11 -10 -10 -8 ------------ Run | Yrd Mat Sub Mat Used RIF Installer . | . . . . Robots Hacked . | . . . . Non-combat . | . . . . Combat . | . . . . Robot Hacks Applied . | . . . . Relay Couplers Released . | . . . . Fabnet Peak Effective % . | . . . . Robots Rewired . | . . . . Allies Hacked . | . . . . Hacks Repelled . | . . . . Allies | -11 -10 -10 -8 -------- Run | Yrd Mat Sub Mat Total Allies . | . . . . Largest Group . | . . . . Highest-Rated Group . | . . . . Highest-Rated Ally . | . . . . Total Orders . | . . . . Ally Attacks . | . . . . Total Damage . | . . . . Kills . | . . . . Allies Corrupted . | . . . . Allies Melted . | . . . . Intel | -11 -10 -10 -8 ------- Run | Yrd Mat Sub Mat Robot Analysis Total 1 | . 1 . . Derelict Logs Recovered 1 | . . 1 . Drone Launches . | . . . . Drone Recoveries . | . . . . Exploration | -11 -10 -10 -8 ------------- Run | Yrd Mat Sub Mat Turns Passed 2504 | 64 947 1066 427 Spaces Moved 1404 | 46 474 502 382 Core 286 | 16 . . 270 Treads . | . . . . Legs 1118 | 30 474 502 112 Wheels . | . . . . Hover . | . . . . Flight . | . . . . Fastest Speed 50 | 50 120 190 50 Average Speed 143 | 95 155 190 73 Slowest Speed 260 | 120 260 190 200 Overloaded Moves . | . . . . Propulsion Burnouts . | . . . . Robots Hopped . | . . . . Cave-ins Triggered . | . . . . Exploration Rate (%) 34 | 3 55 28 53 Regions Visited 3 Branch Regions 1 Pre-discovered Areas . | . . . . Known Exits Taken . | . . . . Unknown Exits Taken 3 | 1 1 1 . Scrap Searched 1 | . . 1 . Spaces Dug 9 | . . 6 3 Terrain Destroyed 62 | . 12 6 44 Melee 1 | . . . 1 Projectile 11 | . . 6 5 AOE 50 | . 12 . 38 Terrain Rammed . | . . . . Walls Destroyed . | . . . . Machines Disabled . | . . . . Actions | -11 -10 -10 -8 --------- Run | Yrd Mat Sub Mat Total 1714 | 61 603 571 479 Wait 88 | . 53 20 15 Move 1401 | 45 473 501 382 Hop . | . . . . Pick Up 49 | 7 19 9 14 Fast Attach 9 | 3 1 . 5 Attach 23 | 3 6 2 12 Detach 2 | . . . 2 Swap 17 | . 4 10 3 Drop 29 | 1 6 8 14 Fire 93 | 2 41 21 29 Melee 3 | . . . 3 Ram . | . . . . Kick . | . . . . Crush . | . . . . Escape Stasis . | . . . . Rewire . | . . . . Trap . | . . . . Miscellaneous . | . . . . Route ------- -11/Scrapyard -10/Materials (discovered 4 exits: [*Mat x2] / [*Min] / *Sub) -10/Subcaves -8/Materials (discovered 3 exits: Fac x3) History --------- Turn | Location | Event 10 | -11/Scrapyard | Discovered new exit (range 16) 65 | -11/Scrapyard | Entered Materials 243 | -10/Materials | Discovered new exit (range 15) 309 | -10/Materials | Build established: Mutant 319 | -10/Materials | Discovered new exit (range 11) 322 | -10/Materials | Repaired Spread Laser? 403 | -10/Materials | Discovered new exit (range 6) 593 | -10/Materials | Discovered new exit (range 8) 800 | -10/Materials | Core integrity fell below 50% 1012 | -10/Materials | Entered Subcaves 1649 | -10/Subcaves | Learned Materials security intel 1744 | -10/Subcaves | Build established: Scavenger-Mutant 1855 | -10/Subcaves | Discovered new exit (range 14) 1936 | -10/Subcaves | Visited 4L-MR0's lab 1962 | -10/Subcaves | Found Arachnoskeleton 2078 | -10/Subcaves | Entered Materials 2078 | -8/Materials | Evolved 4 slots: Propulsion x2, Utility x2 2263 | -8/Materials | Core integrity fell below 50% 2296 | -8/Materials | Lost 7 parts (6n1u) 2377 | -8/Materials | Core integrity fell below 20% 2380 | -8/Materials | Attached Arachnoskeleton, gained temporary slots: Propulsion x3 2453 | -8/Materials | Identified exit to Factory 2505 | -8/Materials | Destroyed by Proton Bomb Trap Last Messages --------------- 02389_ K-01 Serf cleans the Material Processor. 02409_ K-01 Serf cleans the Nuclear Reactor. 02415_ Acquired Cesium-ion Thruster. 02425_ Acquired Lrg. Storage Unit. 02442_ Connecting with Terminal... >>Access(Main) Found 3 level access points to Factory: (86,15) (10,87) (21,10) Map updated. >>Access(Branch) No branch access points found. 02455_ Acquired Particle Gun. 02458_ Acquired Mining Claw. 02499_ Connecting with Terminal... 02505_ Triggered Proton Bomb Trap. 02505_ A bubble of electromagnetic force engulfs the area. Map ----- +----------------------------------------------------+ | ?????????????????????????????????????????????????? | | ?????????????????????????????????????????????????? | | ?????????????????????????????????????????????????? | | ?????????????????????????????????????????????????? | | ?????????????????????????????????????????????????? | | ?????????????????????????????????????????????????? | | ?????????????????????????????????????????????????? | | ?????????????????????????????????????????????????? | | ????????????????????? ???????????????????????????? | | ????????????????????? ?????????????????????????? | | ???????????????????? ?????????????????????????? | | ???? ?????? ?????????????????????????? | | ???? ###+#####????# #????????????????????????? | | ????## ! ##????## ##????????????????????????? | | ????## ##????## ##????????????????????????? | | ????## ]]= ##????## ##?????????????